bitfinex-derivatives/quotes_BNBF0:USTF0_20251219
["timestamp","ask_amount","ask_price","bid_price","bid_amount"]
[1766176743128,0.20209235,861.47,860.21,0.72112004]
[1766176743325,0.20209235,861.47,860.22,0.72112004]
[1766176743629,0.20209235,861.47,860.23,0.72112004]
[1766176743826,0.20209235,861.47,859.97,8.81935915]
[1766176744025,0.20209235,861.47,859.98,0.72141864]
[1766176744228,0.20209235,861.47,859.99,0.72141864]
[1766176744430,0.20209235,861.47,860.0,0.72141864]
[1766176744629,0.20209235,861.47,860.01,0.72141864]
[1766176744826,0.20209235,861.47,860.02,0.72141864]
[1766176745027,0.20209235,861.47,860.03,0.72141864]
[1766176745227,0.20209235,861.47,860.04,0.72141864]
[1766176745426,0.20209235,861.47,860.05,0.72141864]
[1766176745626,0.20209235,861.47,860.06,0.72141864]
[1766176745827,0.20209235,861.47,860.07,0.72141864]
[1766176746127,0.20209235,861.47,860.08,0.72141864]
[1766176746331,0.20209235,861.47,860.09,0.72141864]
[1766176746527,0.20209235,861.47,860.1,0.72141864]
[1766176746728,0.20209235,861.47,860.11,0.72141864]
[1766176746931,0.20209235,861.47,860.12,0.72141864]
[1766176747131,0.20209235,861.47,860.13,0.72141864]
[1766176747329,0.20209235,861.47,860.14,0.72141864]
[1766176747629,0.20209235,861.47,860.15,0.72141864]
[1766176747931,0.20209235,861.47,860.16,0.72141864]
[1766176748231,0.20209235,861.47,860.17,0.72141864]
[1766176748436,0.20209235,861.47,860.18,0.72141864]
[1766176748634,0.20209235,861.47,860.19,0.72141864]
[1766176748934,0.20209235,861.47,860.2,0.72141864]
[1766176749132,0.20209235,861.47,860.21,0.72141864]
[1766176749435,0.20209235,861.47,860.22,0.72141864]
[1766176749738,0.20209235,861.47,860.23,0.72141864]
[1766176750035,0.20209235,861.47,860.24,0.72141864]
[1766176750237,0.20209235,861.47,860.25,0.72164998]
[1766176750437,0.20209235,861.47,859.97,9.67970441]
[1766176750633,0.20209235,861.47,859.98,0.72165951]
[1766176750836,0.20209235,861.47,859.99,0.72165951]
[1766176751038,0.20209235,861.47,860.0,0.72165951]
[1766176751334,0.20209235,861.47,860.01,0.72165951]
[1766176751534,0.20209235,861.47,860.02,0.72165951]
[1766176751737,0.20209235,861.47,860.03,0.72165951]
[1766176752038,0.20209235,861.47,860.04,0.72165951]
[1766176752234,0.20209235,861.47,860.05,0.72165951]
[1766176752438,0.20209235,861.47,860.06,0.72165951]
[1766176752637,0.20209235,861.47,860.07,0.72165951]
[1766176752839,0.20209235,861.47,860.08,0.72165951]
[1766176753038,0.20209235,861.47,860.09,0.72165951]
[1766176753237,0.20209235,861.47,860.1,0.72165951]
[1766176753439,0.20209235,861.47,860.11,0.72165951]
[1766176753736,0.20209235,861.47,860.12,0.72165951]
[1766176753935,0.20209235,861.47,860.13,0.72165951]
[1766176754237,0.20209235,861.47,860.14,0.72165951]
[1766176754440,1.73521073,861.36,859.82,0.86034526]
[1766176754638,1.73521073,861.35,859.83,0.72232801]
[1766176754836,1.73521073,861.35,859.84,0.72232801]
[1766176755040,1.73521073,861.35,859.85,0.72232801]
[1766176755239,1.73521073,861.35,859.86,0.72232801]
[1766176755437,1.73521073,861.35,859.87,0.72232801]
[1766176755638,1.73521073,861.35,859.88,0.72232801]
[1766176755938,1.73521073,861.35,859.89,0.72232801]
[1766176756143,1.73521073,861.35,859.9,0.72232801]
[1766176756342,1.73521073,861.35,859.91,0.72232801]
[1766176756542,1.73521073,861.35,859.92,0.72232801]
[1766176756740,1.73521073,861.35,859.93,0.72232801]
[1766176757039,1.73521073,861.35,859.94,0.72232801]
[1766176757243,1.73521073,861.26,859.95,0.72232801]
[1766176757444,1.73521073,861.26,859.96,0.72232801]
[1766176757641,1.73521073,861.26,859.97,0.72232801]
[1766176757840,1.73521073,861.26,859.98,0.72232801]
[1766176758145,1.73521073,861.26,859.99,0.72232801]
[1766176758344,1.73521073,861.26,860.0,0.72232801]
[1766176758640,1.73521073,861.26,860.01,0.72232801]
[1766176758841,1.73521073,861.25,859.74,0.86034526]
[1766176759046,1.73521073,861.2,859.75,0.72271415]
[1766176759245,1.73521073,861.2,859.76,0.72271415]
[1766176759445,1.73521073,861.2,859.77,0.72271415]
[1766176759647,1.73521073,861.2,859.78,0.72271415]
[1766176759846,1.73521073,861.2,859.79,0.72271415]
[1766176760043,1.73521073,861.2,859.8,0.72271415]
[1766176760243,1.73521073,861.2,859.81,0.72271415]
[1766176760447,1.73521073,861.2,859.82,0.72271415]
[1766176760645,1.73521073,861.2,859.83,0.72271415]
[1766176760848,1.73521073,861.2,859.84,0.72271415]
[1766176761048,1.73521073,861.2,859.85,0.72271415]
[1766176761344,1.73521073,861.2,859.86,0.72271415]
[1766176761549,1.73521073,861.2,859.87,0.72271415]
[1766176761849,1.73521073,861.2,859.88,0.72271415]
[1766176762048,1.73521073,861.2,859.89,0.72271415]
[1766176762246,1.73521073,861.21,859.9,0.72271415]
[1766176762446,1.73521073,861.2,859.67,0.86034526]
[1766176762651,0.20209235,861.47,859.68,0.72316436]
[1766176762652,1.73521073,861.04,859.68,0.72316436]
[1766176762850,0.20209235,861.47,859.69,0.72316436]
[1766176762851,1.73521073,861.02,859.69,0.72316436]
[1766176763151,1.73521073,861.04,859.7,0.72316436]
[1766176763453,1.73521073,860.95,859.39,0.86034526]
[1766176763750,1.73521073,860.95,859.4,0.72308343]
[1766176763951,1.73521073,860.95,859.41,0.72308343]
[1766176764149,1.73521073,860.97,859.42,0.72308343]
[1766176764448,1.73521073,860.97,859.43,0.72308343]
[1766176764750,1.73521073,860.97,859.44,0.72308343]
[1766176764951,1.73521073,860.97,859.45,0.72308343]
[1766176765151,1.73521073,860.99,859.46,0.72308343]
[1766176765452,1.73521073,860.98,859.47,0.72308343]
[1766176765653,1.73521073,860.98,859.48,0.72308343]
[1766176765854,1.73521073,860.98,859.49,0.72308343]
[1766176766054,1.73521073,860.98,859.5,0.72308343]
[1766176766255,1.73521073,861.0,859.51,0.72308343]
[1766176766556,1.73521073,861.0,859.52,0.72308343]
[1766176766854,1.73521073,861.0,859.53,0.72308343]
[1766176767055,1.73521073,861.0,859.54,0.72308343]
[1766176767354,1.73521073,861.02,859.55,0.72308343]
[1766176767555,1.73521073,861.02,859.56,0.72308343]
[1766176767851,1.73521073,861.02,859.57,0.72308343]
[1766176768052,1.73521073,861.02,859.58,0.72308343]
[1766176768256,1.73521073,861.03,859.29,0.86034526]
[1766176768556,1.73521073,861.03,859.3,0.72094889]
[1766176768755,1.73521073,861.03,859.31,0.72094889]
[1766176769054,1.73521073,861.03,859.29,0.86034526]
[1766176769055,1.73521073,861.03,859.32,0.72094889]
[1766176769249,1.73521073,861.05,859.33,0.72094889]
[1766176769452,1.73521073,861.05,859.34,0.72094889]
[1766176769652,1.73521073,861.05,859.35,0.72094889]
[1766176769854,1.73521073,861.05,859.36,0.72094889]
[1766176770056,1.73521073,860.98,859.37,0.72094889]
[1766176770253,1.73521073,861.01,859.38,0.72094889]
[1766176770456,1.73521073,860.93,859.39,0.72094889]
[1766176770757,1.73521073,860.93,859.12,0.86034526]
[1766176771056,1.73521073,860.93,859.13,0.72068766]
[1766176771356,1.73521073,860.97,859.14,0.72068766]
[1766176771557,1.73521073,860.97,859.15,0.72068766]
[1766176771758,1.73521073,860.97,859.16,0.72068766]
[1766176771955,1.73521073,860.97,859.17,0.72068766]
[1766176772159,1.73521073,860.99,859.18,0.72068766]
[1766176772358,1.73521073,860.99,859.1,1.06243761]
[1766176772359,1.73521073,861.0,859.19,0.72068766]
[1766176772660,1.73521073,861.0,859.2,0.72068766]
[1766176772956,1.73521073,861.0,859.21,0.72068766]
[1766176773154,1.73521073,861.0,859.22,0.72068766]
[1766176773357,1.73521073,861.03,859.23,0.72068766]
[1766176773557,1.73521073,861.03,859.24,0.72068766]
[1766176773754,1.73521073,861.03,859.25,0.72068766]
[1766176773960,1.73521073,861.03,859.26,0.72068766]
[1766176774160,1.73521073,861.05,859.27,0.72068766]
[1766176774358,1.73521073,861.05,859.28,0.72068766]
[1766176774557,1.73521073,861.05,859.29,0.72068766]
[1766176774756,1.73521073,861.05,859.3,0.72068766]
[1766176774958,1.73521073,861.05,859.31,0.72068766]
[1766176775257,1.73521073,861.08,859.32,0.72068766]
[1766176775560,1.73521073,861.08,859.33,0.72068766]
[1766176775860,1.73521073,861.08,859.34,0.72068766]
[1766176776061,1.73521073,861.08,859.35,0.72068766]
[1766176776361,1.73521073,861.1,859.1,0.20209235]
[1766176776561,1.73521073,861.1,859.11,0.71881174]
[1766176776757,1.73521073,861.1,859.12,0.71881174]
[1766176776961,1.73521073,861.1,859.13,0.71881174]
[1766176777162,1.73521073,861.12,859.14,0.71881174]
[1766176777363,1.73521073,861.12,859.15,0.71881174]
[1766176777662,1.73521073,861.12,859.16,0.71881174]
[1766176777862,1.73521073,861.12,859.17,0.71881174]
[1766176778061,1.73521073,861.12,859.18,0.71881174]
[1766176778258,0.20209235,861.47,859.19,0.71881174]
[1766176778259,1.73521073,861.14,859.19,0.71881174]
[1766176778562,1.73521073,861.14,859.2,0.71881174]
[1766176778761,1.73521073,861.14,859.21,0.71881174]
[1766176778959,1.73521073,861.14,859.22,0.71881174]
[1766176779158,1.73521073,861.15,859.23,0.71881174]
[1766176779359,1.73521073,861.16,859.24,0.71881174]
[1766176779560,1.73521073,861.16,859.25,0.71881174]
[1766176779764,1.73521073,861.16,859.26,0.71881174]
[1766176779963,1.73521073,861.16,859.27,0.71881174]
[1766176780161,1.73521073,861.17,859.28,0.71881174]
[1766176780361,1.73521073,861.17,859.29,0.71881174]
[1766176780561,1.73521073,861.17,859.3,0.71881174]
[1766176780765,1.73521073,861.17,859.31,0.71881174]
[1766176780965,1.73521073,861.17,859.1,0.20209235]
[1766176781261,1.73521073,861.18,859.11,0.718042]
[1766176781463,1.73521073,861.18,859.12,0.718042]
[1766176781661,1.73521073,861.18,859.13,0.718042]
[1766176781862,1.73521073,861.18,859.14,0.718042]
[1766176782061,1.73521073,861.18,859.15,0.718042]
[1766176782262,1.73521073,861.19,859.16,0.718042]
[1766176782465,1.73521073,861.19,859.17,0.718042]
[1766176782663,1.73521073,861.19,859.18,0.718042]
[1766176782962,1.73521073,861.19,859.19,0.718042]
[1766176783162,1.73521073,861.19,859.2,0.718042]
[1766176783366,1.73521073,861.2,859.21,0.718042]
[1766176783564,1.73521073,861.2,859.22,0.718042]
[1766176783768,1.73521073,861.2,859.23,0.718042]
[1766176784067,1.73521073,861.19,859.24,0.718042]
[1766176784267,1.73521073,861.2,859.25,0.718042]
[1766176784468,1.73521073,861.2,859.26,0.718042]
[1766176784666,1.73521073,861.21,859.27,0.718042]
[1766176784866,1.73521073,861.21,859.28,0.718042]
[1766176785066,1.73521073,861.21,859.29,0.718042]
[1766176785364,1.73521073,861.21,859.1,0.20209235]
[1766176785564,1.73521073,861.21,859.11,0.71748225]
[1766176785767,1.73521073,861.21,859.12,0.71748225]
[1766176786064,1.73521073,861.21,859.13,0.71748225]
[1766176786367,1.73521073,861.21,859.14,0.71748225]
[1766176786567,1.73521073,861.21,859.15,0.71748225]
[1766176786765,1.73521073,861.21,859.16,0.71748225]
[1766176786964,1.73521073,861.21,859.17,0.71748225]
[1766176787164,1.73521073,861.21,859.18,0.71748225]
[1766176787369,1.73521073,861.15,859.19,0.71748225]
[1766176787569,1.73521073,861.15,859.2,0.71748225]
[1766176787865,1.73521073,861.15,859.21,0.71748225]
[1766176788069,1.73521073,861.15,859.22,0.71748225]
[1766176788267,1.73521073,861.15,859.23,0.71748225]
[1766176788463,1.73521073,861.15,859.1,0.20209235]
[1766176788665,1.73521073,861.15,859.11,0.71758302]
[1766176788964,1.73521073,861.15,859.12,0.71758302]
[1766176789164,1.73521073,861.16,859.13,0.71758302]
[1766176789366,1.73521073,861.15,859.14,0.71758302]
[1766176789564,1.73521073,861.15,859.15,0.71758302]
[1766176789766,1.73521073,861.15,859.16,0.71758302]
[1766176789966,1.73521073,861.15,859.17,0.71758302]
[1766176790165,1.73521073,861.16,859.18,0.71758302]
[1766176790370,1.73521073,861.15,859.19,0.71758302]
[1766176790570,1.73521073,861.15,859.2,0.71758302]
[1766176790869,1.73521073,861.15,859.21,0.71758302]
[1766176791070,1.73521073,861.15,859.22,0.71758302]
[1766176791370,1.73521073,861.08,859.1,0.20209235]
[1766176791568,1.73521073,861.08,859.11,0.71765419]
[1766176791771,1.73521073,861.08,859.12,0.71765419]
[1766176791971,1.73521073,861.07,859.13,0.71765419]
[1766176792169,1.73521073,861.08,859.14,0.71765419]
[1766176792370,1.73521073,861.07,859.15,0.71765419]
[1766176792569,1.73521073,861.07,859.16,0.71765419]
[1766176792767,1.73521073,861.07,859.1,0.20209235]
[1766176793072,1.73521073,860.96,859.1,0.20209235]
[1766176793271,1.73521073,860.96,859.05,45.56968878]
[1766176793571,1.73521073,860.96,858.77,0.86034526]
[1766176793767,1.73521073,860.96,858.78,0.71795429]
[1766176793967,1.73521073,860.96,859.0,0.20237853]
[1766176794168,1.73521073,860.96,858.77,0.86034526]
[1766176794370,1.73521073,860.84,858.78,0.71823362]
[1766176794571,1.73521073,860.84,858.91,0.20238795]
[1766176794870,1.73521073,860.84,858.92,0.71823362]
[1766176795068,1.73521073,860.84,858.93,0.71823362]
[1766176795368,1.73521073,860.85,858.91,0.20238795]
[1766176795570,1.73521073,860.85,858.92,0.71820825]
[1766176795772,1.73521073,860.85,858.93,0.71820825]
[1766176796071,1.73521073,860.85,858.91,0.20238795]
[1766176796369,1.73521073,860.84,858.92,0.71810198]
[1766176796572,1.73521073,860.84,858.93,0.71810198]
[1766176796768,1.73521073,860.84,858.91,0.20238795]
[1766176796969,1.73521073,860.84,858.92,0.71822874]
[1766176797168,1.73521073,860.85,858.93,0.71822874]
[1766176797370,1.73521073,860.84,858.91,0.20238795]
[1766176797570,1.73521073,860.84,858.92,0.71830247]
[1766176797769,1.73521073,860.84,858.93,0.71830247]
[1766176797973,1.73521073,860.84,858.91,0.20238795]
[1766176798170,1.73521073,860.85,858.92,0.71830258]
[1766176798470,1.73521073,860.83,858.93,0.71830258]
[1766176798674,1.73521073,860.8,858.91,0.20238795]
[1766176798974,1.73521073,860.67,858.91,0.20238795]
[1766176799170,1.73521073,860.69,858.91,0.20238795]
[1766176799375,1.73521073,860.67,858.91,0.20238795]
[1766176801074,1.73521073,860.76,858.91,0.20238795]
[1766176801376,1.73521073,860.91,858.92,0.71852236]
[1766176801577,1.73521073,860.91,858.93,0.71852236]
[1766176801772,1.73521073,860.91,858.94,0.71852236]
[1766176801972,1.73521073,860.91,858.95,0.71852236]
[1766176802274,1.73521073,860.89,858.96,0.71852236]
[1766176802477,1.73521073,860.89,858.97,0.71852236]
[1766176802678,1.73521073,860.99,858.98,0.71852236]
[1766176802973,1.73521073,861.03,858.99,0.71852236]
[1766176803179,1.73521073,861.02,859.0,0.71852236]
[1766176803480,1.73521073,861.02,859.01,0.71852236]
[1766176803774,1.73521073,861.02,859.02,0.71852236]
[1766176804074,1.73521073,861.02,859.03,0.71852236]
[1766176804278,1.73521073,861.01,859.04,0.71852236]
[1766176804476,1.73521073,861.01,859.05,0.71852236]
[1766176804776,1.73521073,861.01,859.06,0.71852236]
[1766176804976,1.73521073,861.01,859.07,0.71852236]
[1766176805279,1.73521073,860.99,859.08,0.71852236]
[1766176805476,1.73521073,860.99,859.09,0.71852236]
[1766176805679,1.73521073,860.99,859.1,0.71852236]
[1766176805878,1.73521073,860.99,859.11,0.71852236]
[1766176806179,1.73521073,860.97,859.12,0.71852236]
[1766176806379,1.73521073,860.97,859.13,0.71852236]
[1766176806576,1.73521073,860.97,859.14,0.71852236]
[1766176806774,1.73521073,860.97,859.15,0.71852236]
[1766176807076,1.73521073,860.97,859.16,0.71852236]
[1766176807277,1.73521073,860.95,859.17,0.71852236]
[1766176807480,1.73521073,860.95,859.18,0.71852236]
[1766176807775,1.73521073,860.95,859.19,0.71852236]
[1766176808078,1.73521073,860.95,859.2,0.71852236]
[1766176808279,1.73521073,860.93,859.21,0.71852236]
[1766176808474,1.73521073,860.93,859.22,0.71852236]
[1766176808676,1.73521073,860.93,858.94,0.86034526]
[1766176808882,1.73521073,860.93,858.95,0.71983684]
[1766176809177,1.73521073,860.91,858.96,0.71983684]
[1766176809375,1.73521073,860.91,858.97,0.71983684]
[1766176809575,1.73521073,860.91,858.98,0.71983684]
[1766176809779,1.73521073,860.91,858.99,0.71983684]
[1766176809979,1.73521073,860.91,859.0,0.71983684]
[1766176810176,1.73521073,860.88,859.01,0.71983684]
[1766176810479,1.73521073,860.88,859.02,0.71983684]
[1766176810675,1.73521073,860.88,859.03,0.71983684]
[1766176810879,1.73521073,860.88,859.04,0.71983684]
[1766176811075,1.73521073,860.88,859.05,0.71983684]
[1766176811376,1.73521073,860.81,859.06,0.71983684]
[1766176811579,1.73521073,860.81,859.07,0.71983684]
[1766176811879,1.73521073,860.81,859.08,0.71983684]
[1766176812075,1.73521073,860.81,859.09,0.71983684]
[1766176812275,1.73521073,860.78,859.1,0.71983684]
[1766176812478,1.73521073,860.78,859.11,0.71983684]
[1766176812679,1.73521073,860.78,859.12,0.71983684]
[1766176812876,1.73521073,860.78,859.13,0.71983684]
[1766176813075,2.90738808,861.4,858.91,0.20238795]
[1766176813076,1.73521073,860.83,859.14,0.71983684]
[1766176813276,1.73521073,860.8,859.15,0.71983684]
[1766176813480,1.73521073,860.8,859.16,0.71983684]
[1766176813681,1.73521073,860.8,859.17,0.71983684]
[1766176813881,1.73521073,860.8,859.18,0.71983684]
[1766176814080,1.73521073,860.8,859.19,0.71983684]
[1766176814279,1.73521073,860.76,859.2,0.71983684]
[1766176814479,1.73521073,860.76,859.21,0.71983684]
[1766176814677,1.73521073,860.76,859.22,0.71983684]
[1766176814879,1.73521073,860.76,859.23,0.71983684]
[1766176815185,1.73521073,860.75,859.24,0.71983684]
[1766176815383,1.73521073,860.75,859.25,0.71983684]
[1766176815684,1.73521073,860.75,859.26,0.71983684]
[1766176815884,1.73521073,860.75,859.27,0.71983684]
[1766176816084,1.73521073,860.74,859.28,0.71983684]
[1766176816284,1.73521073,860.73,859.29,0.71983684]
[1766176816485,1.73521073,860.73,859.3,0.71983684]
[1766176816778,1.73521073,860.73,859.31,0.71983684]
[1766176816980,1.73521073,860.73,859.32,0.71983684]
[1766176817186,1.73521073,860.7,859.33,0.71983684]
[1766176817482,1.73521073,860.7,859.34,0.71983684]
[1766176817785,1.73521073,860.7,859.35,0.71983684]
[1766176817984,1.73521073,860.7,859.36,0.71983684]
[1766176818184,1.73521073,860.69,859.37,0.72352291]
[1766176818386,1.73521073,860.69,859.38,0.72352291]
[1766176818589,1.73521073,860.69,859.1,0.86034526]
[1766176818788,1.73521073,860.69,859.11,0.72352291]
[1766176818988,1.73521073,860.69,859.12,0.72352291]
[1766176819187,1.73521073,860.67,859.13,0.72352291]
[1766176819387,1.73521073,860.67,859.14,0.72352291]
[1766176819589,1.73521073,860.67,859.15,0.72352291]
[1766176819789,1.73521073,860.67,859.16,0.72352291]
[1766176819985,1.73521073,860.67,859.17,0.72352291]
[1766176820186,1.73521073,860.65,859.18,0.72352291]
[1766176820386,1.73521073,860.65,859.19,0.72352291]
[1766176820585,1.73521073,860.65,859.2,0.72352291]
[1766176820785,1.73521073,860.65,859.21,0.72352291]
[1766176821090,1.73521073,860.65,859.22,0.72352291]
[1766176821290,1.73521073,860.63,859.23,0.72352291]
[1766176821487,1.73521073,860.65,859.24,0.72352291]
[1766176821686,1.73521073,860.65,859.25,0.72352291]
[1766176821890,1.73521073,860.65,859.26,0.72352291]
[1766176822087,1.73521073,860.65,859.27,0.72352291]
[1766176822291,1.73521073,860.63,859.28,0.72352291]
[1766176822488,1.73521073,860.63,859.29,0.72352291]
[1766176822692,1.73521073,860.63,859.3,0.72352291]
[1766176822893,1.73521073,860.63,859.31,0.72352291]
[1766176823094,1.73521073,860.63,859.32,0.72352291]
[1766176823393,1.73521073,860.62,859.33,0.72352291]
[1766176823590,1.73521073,860.62,859.34,0.72352291]
[1766176823891,1.73521073,860.62,859.35,0.72352291]
[1766176824195,1.73521073,860.62,859.36,0.72352291]
[1766176824395,1.73521073,860.62,859.37,0.72352291]
[1766176824592,1.73521073,860.62,859.38,0.72352291]
[1766176824797,0.2023397,860.31,859.39,0.72352291]
[1766176824997,0.2023397,860.31,859.4,0.72352291]
[1766176825196,0.2023397,860.31,859.41,0.72352291]
[1766176825393,0.2023397,860.31,859.42,0.72352291]
[1766176825693,0.2023397,860.31,859.43,0.72352291]
[1766176825897,0.2023397,860.31,859.44,0.72352291]
[1766176826097,0.2023397,860.31,859.45,0.72352291]
[1766176826297,0.2023397,860.31,859.46,0.72352291]
[1766176826498,0.2023397,860.31,859.47,0.72352291]
[1766176826694,0.2023397,860.31,859.48,0.72352291]
[1766176826996,0.2023397,860.31,859.23,0.86034526]
[1766176826997,0.2023397,860.31,859.49,0.72352291]
[1766176827197,0.2023397,860.31,859.5,0.72352291]
[1766176827392,0.2023397,860.31,859.51,0.72352291]
[1766176827595,0.2023397,860.31,859.24,0.86034526]
[1766176827791,0.2023397,860.31,859.25,0.7254439]
[1766176827997,0.2023397,860.31,859.26,0.7254439]
[1766176828196,0.2023397,860.31,859.27,0.7254439]
[1766176828398,0.2023397,860.31,859.28,0.7254439]
[1766176828598,0.2023397,860.31,859.29,0.7254439]
[1766176828799,0.2023397,860.31,859.3,0.7254439]
[1766176829102,0.2023397,860.31,859.31,0.7254439]
[1766176829395,0.2023397,860.31,859.32,0.7254439]
[1766176829595,0.2023397,860.31,859.33,0.7254439]
[1766176829800,0.2023397,860.31,859.34,0.7254439]
[1766176829995,0.2023397,860.31,859.35,0.7254439]
[1766176830195,0.2023397,860.31,859.36,0.7254439]
[1766176830397,0.2023397,860.31,859.37,0.7254439]
[1766176830595,0.2023397,860.31,859.38,0.7254439]
[1766176830794,0.2023397,860.31,859.39,0.7254439]
[1766176830995,0.2023397,860.31,859.4,0.7254439]
[1766176831199,0.2023397,860.31,859.41,0.7254439]
[1766176831399,0.2023397,860.31,859.42,0.7254439]
[1766176831597,0.2023397,860.31,859.43,0.7254439]
[1766176831896,0.2023397,860.31,859.44,0.7254439]
[1766176832101,0.2023397,860.31,859.45,0.7254439]
[1766176832302,0.2023397,860.31,859.46,0.7254439]
[1766176832499,0.2023397,860.31,859.47,0.7254439]
[1766176832702,0.2023397,860.31,859.48,0.7254439]
[1766176832903,0.2023397,860.31,859.49,0.7254439]
[1766176833100,0.2023397,860.31,859.5,0.7254439]
[1766176833400,0.2023397,860.31,859.51,0.7254439]
[1766176833604,0.2023397,860.31,859.52,0.7254439]
[1766176833805,0.2023397,860.31,859.25,0.86034526]
[1766176834005,0.2023397,860.31,859.26,0.72614064]
[1766176834205,0.2023397,860.31,859.27,0.72614064]
[1766176834402,0.2023397,860.31,859.28,0.72614064]
[1766176834607,0.2023397,860.31,859.29,0.72614064]
[1766176834803,0.2023397,860.31,859.3,0.72614064]
[1766176835007,0.2023397,860.31,859.31,0.72614064]
[1766176835204,0.2023397,860.31,859.32,0.72614064]
[1766176835503,0.2023397,860.31,859.33,0.72614064]
[1766176835703,0.2023397,860.31,859.34,0.72614064]
[1766176835908,0.2023397,860.31,859.35,0.72614064]
[1766176836107,0.2023397,860.31,859.36,0.72614064]
[1766176836305,0.2023397,860.31,859.37,0.72614064]
[1766176836607,0.2023397,860.31,859.38,0.72614064]
[1766176836805,0.2023397,860.31,859.39,0.72614064]
[1766176837004,0.2023397,860.31,859.25,0.86034526]
[1766176837005,0.2023397,860.31,859.4,0.72614064]
[1766176837307,0.2023397,860.31,859.41,0.72614064]
[1766176837505,0.2023397,860.31,859.42,0.72614064]
[1766176837706,0.2023397,860.31,859.43,0.72614064]
[1766176837905,0.2023397,860.31,859.44,0.72614064]
[1766176838105,0.2023397,860.31,859.45,0.72614064]
[1766176838404,0.2023397,860.31,859.46,0.72614064]
[1766176838606,0.2023397,860.31,859.47,0.72614064]
[1766176838805,0.2023397,860.31,859.48,0.72614064]
[1766176839009,0.2023397,860.31,859.49,0.72614064]
[1766176839305,0.2023397,860.31,859.5,0.72614064]
[1766176839605,0.2023397,860.31,859.51,0.72614064]
[1766176839805,0.2023397,860.31,859.52,0.72614064]
[1766176840005,0.2023397,860.31,859.25,0.86034526]
[1766176840006,0.2023397,860.31,859.53,0.72614064]
[1766176840206,0.2023397,860.31,859.26,0.86034526]
[1766176840407,0.2023397,860.31,859.27,0.72643021]
[1766176840605,0.2023397,860.31,859.26,0.86034526]
[1766176840606,0.2023397,860.31,859.28,0.72643021]
[1766176840804,0.2023397,860.31,859.29,0.72643021]
[1766176841004,0.2023397,860.31,859.3,0.72643021]
[1766176841207,0.2023397,860.31,859.26,0.86034526]
[1766176841208,0.2023397,860.31,859.31,0.72643021]
[1766176841409,0.2023397,860.31,859.32,0.72643021]
[1766176841610,0.2023397,860.31,859.33,0.72643021]
[1766176841809,0.2023397,860.31,859.34,0.72643021]
[1766176842010,0.2023397,860.31,859.35,0.72643021]
[1766176842209,0.2023397,860.31,859.36,0.72643021]
[1766176842407,0.2023397,860.31,859.37,0.72643021]
[1766176842611,0.2023397,860.31,859.38,0.72643021]
[1766176842810,0.2023397,860.31,859.39,0.72643021]
[1766176843011,0.2023397,860.31,859.4,0.72643021]
[1766176843306,0.2023397,860.31,859.41,0.72643021]
[1766176843509,0.2023397,860.31,859.42,0.72643021]
[1766176843708,0.2023397,860.31,859.43,0.72643021]
[1766176843911,0.2023397,860.31,859.44,0.72643021]
[1766176844207,0.2023397,860.31,859.45,0.72643021]
[1766176844410,0.2023397,860.31,859.46,0.72643021]
[1766176844610,0.2023397,860.31,859.47,0.72643021]
[1766176844808,0.2023397,860.31,859.48,0.72643021]
[1766176845008,0.2023397,860.31,859.49,0.72643021]
[1766176845211,0.2023397,860.31,859.5,0.72643021]
[1766176845409,0.2023397,860.31,859.51,0.72643021]
[1766176845609,0.2023397,860.31,859.52,0.72643021]
[1766176845912,0.2023397,860.31,859.53,0.72643021]
[1766176846110,0.2023397,860.31,859.54,0.72643021]
[1766176846313,0.2023397,860.31,859.55,0.72643021]
[1766176846513,0.2023397,860.31,859.56,0.72643021]
[1766176846709,0.2023397,860.31,859.57,0.72643021]
[1766176846913,0.2023397,860.31,859.58,0.72643021]
[1766176847111,0.2023397,860.31,859.59,0.72643021]
[1766176847311,0.2023397,860.31,859.6,0.72643021]
[1766176847612,0.2023397,860.31,859.61,0.72643021]
[1766176847810,0.2023397,860.31,859.62,0.72643021]
[1766176848010,0.2023397,860.31,859.63,0.72643021]
[1766176848212,0.2023397,860.31,859.64,0.72643021]
[1766176848514,0.2023397,860.31,859.65,0.72643021]
[1766176848712,0.2023397,860.31,859.47,0.86034526]
[1766176848713,0.2023397,860.31,859.66,0.72643021]
[1766176848911,0.2023397,860.31,859.67,0.72643021]
[1766176849115,0.2023397,860.31,859.68,0.72643021]
[1766176849317,0.2023397,860.31,859.69,0.72643021]
[1766176849611,0.2023397,860.31,859.7,0.72643021]
[1766176849817,0.2023397,860.31,859.71,0.72643021]
[1766176850017,0.2023397,860.31,859.72,0.72643021]
[1766176850312,0.2023397,860.31,859.73,0.72643021]
[1766176850517,0.2023397,860.31,859.74,0.72643021]
[1766176850818,0.2023397,860.31,859.46,0.86034526]
[1766176851017,0.2023397,860.31,859.47,0.72510627]
[1766176851217,0.2023397,860.31,859.48,0.72510627]
[1766176851417,0.2023397,860.31,859.49,0.72510627]
[1766176851617,0.2023397,860.31,859.5,0.72510627]
[1766176851818,0.2023397,860.31,859.51,0.72510627]
[1766176852113,0.2023397,860.31,859.52,0.72510627]
[1766176852315,0.2023397,860.31,859.53,0.72510627]
[1766176852518,0.2023397,860.31,859.54,0.72510627]
[1766176852818,0.2023397,860.31,859.55,0.72510627]